Cogmind - Beta 15 @@@ ROGUE MODE // 2025.08.06 @ 20:13:18 Player: Silfurdreki Result: Destroyed by exploding Fusion Modulator Performance ------------- Evolutions (6) 3000 Regions Visited (9) 1800 Robots Destroyed (82) 410 Value Destroyed (2356) 2356 Prototype IDs (11) 220 Alien Tech Used (0) 0 Bonus (500) 500 TOTAL SCORE: 8286 Bonus ------- Entered DSFs 500 Cogmind --------- Core Integrity 0/1150 Matter 167/300 Energy 98/100 System Corruption 20% Temperature Cool (24) Movement Core (50) Location -4/Factory Parts ------- > --- POWER (2) -------- (None) > --- PROPULSION (5) --- (None) > --- UTILITY (10) ----- Enhanced Optical Array Advanced Melee Analysis Suite Hacking Suite > --- WEAPON (2) ------- Spear > --- INVENTORY (5) ---- Neutrino Core Precision Shock Rifle Chainsword Peak State ------------ > --- POWER ------------ Angular Momentum Engine Micro Fission Core > --- PROPULSION ------- Xenon Bombardment Thruster Xenon Bombardment Thruster Nuclear Pulse Thruster Nuclear Pulse Thruster Diametric Drive > --- UTILITY ---------- Enhanced Optical Array Advanced Terrain Scanner Advanced Terrain Scan Processor Advanced Melee Analysis Suite Cloaking Device Hacking Suite Improved Hacking Suite System Shield System Shield System Shield > --- WEAPON ----------- Spear > --- INVENTORY -------- Fusion Compressor Precision Shock Rifle Chainsword [Rating: 83] Favorites ----------- Power Improved Ion Engine Engine Improved Ion Engine Power Core Light Nuclear Core Propulsion Light Treads Treads Light Treads Leg Aluminum Leg Flight Unit Xenon Bombardment Thruster Utility High-capacity Storage Unit Device Sensor Array Storage High-capacity Storage Unit Processor Advanced Visual Processing Unit Hackware Hacking Suite Protection Improved Light Armor Plating Weapon Gatling Laser Energy Gun Gatling Laser Ballistic Gun Assault Rifle Launcher Grenade Launcher Impact Weapon Great Maul Piercing Weapon Spear Build | -11 -10 -10 -9 -8 -7 -6 -6 -5 -4 ------- Run | Yrd Mat Min Mat Mat Fac Fac DSF Fac Fac Slots Evolved 12 | . . . 2 2 2 2 . 2 2 Power 1 | . . . . . 1 . . . . Propulsion 3 | . . . 1 . . 1 . . 1 Utility 8 | . . . 1 2 1 1 . 2 1 Weapon . | . . . . . . . . . . Parts Attached 91 | 7 10 2 14 14 18 3 3 10 10 Power 13 | 1 3 . 1 2 2 . . 1 3 Engine 8 | 1 2 . 1 1 2 . . . 1 Core 5 | . 1 . . 1 . . . 1 2 Reactor . | . . . . . . . . . . Propulsion 29 | 3 2 . 7 6 5 1 3 . 2 Treads 17 | 2 2 . 7 6 . . . . . Leg 1 | 1 . . . . . . . . . Wheel . | . . . . . . . . . . Hover . | . . . . . . . . . . Flight 11 | . . . . . 5 1 3 . 2 Utility 30 | 1 2 . 2 3 6 2 . 9 5 Device 10 | . 1 . 2 1 2 1 . 2 1 Storage 2 | 1 1 . . . . . . . . Processor 6 | . . . . . 1 . . 4 1 Hackware 8 | . . . . . 2 . . 3 3 Protection 4 | . . . . 2 1 1 . . . Artifact . | . . . . . . . . . . Weapon 19 | 2 3 2 4 3 5 . . . . Energy Gun 12 | 1 . 1 4 3 3 . . . . Energy Cannon . | . . . . . . . . . . Ballistic Gun 4 | 1 3 . . . . . . . . Ballistic Cannon . | . . . . . . . . . . Launcher 1 | . . 1 . . . . . . . Special Weapon . | . . . . . . . . . . Impact Weapon 1 | . . . . . 1 . . . . Slashing Weapon . | . . . . . . . . . . Piercing Weapon 1 | . . . . . 1 . . . . Special Melee Weapon . | . . . . . . . . . . Unidentified Prototypes 6 | . . . . 2 1 1 . 1 1 Parts Lost 39 | . 3 . 4 9 . . 3 2 18 Power 7 | . 1 . 1 1 . . 1 . 3 Propulsion 10 | . 1 . 1 1 . . . . 7 Utility 17 | . . . . 5 . . 2 2 8 Weapon 5 | . 1 . 2 2 . . . . . Highest Loss Streak 16 | . 1 . 1 5 . . 3 2 16 To Critical Strikes . | . . . . . . . . . . Average Backups 10 | 2 8 12 13 17 3 2 3 4 3 Power 1 | . . 1 1 2 . . . . . Propulsion 4 | 1 4 6 4 6 1 . . 2 . Utility 2 | . 1 3 3 3 . . 1 . . Weapon 3 | . 1 2 3 5 1 2 2 2 2 Tool/Special . | . . . . . . . . . . Unused Backups 24 | . 1 . 4 16 2 . . . 1 Power 5 | . . . . 4 1 . . . . Propulsion 8 | . 1 . 3 3 1 . . . . Utility 6 | . . . 1 5 . . . . . Weapon 5 | . . . . 4 . . . . 1 Tool/Special . | . . . . . . . . . . Average Slot Usage (%) 90 | . 92 100 99 95 69 91 86 79 63 Engine 6 | . 11 . 2 8 7 12 9 5 2 Core 3 | . 1 14 8 . . . . 1 3 Treads 21 | . 27 28 32 26 . . . . . Flight 5 | . . . . . 22 26 26 23 15 Device 16 | . 10 14 21 25 8 13 11 9 6 Storage 8 | . 14 14 11 8 . . . . . Processor 2 | . . . . . 6 6 6 12 13 Hackware 3 | . . . . . 8 13 13 16 15 Protection 2 | . . . . 7 4 12 11 2 . Energy Gun 10 | . 1 . 21 17 5 . . . . Ballistic Gun 6 | . 24 14 . . . . . . . Peak Build Rating 83 | 6 9 11 18 36 38 48 48 70 83 Average Rating 24 | 4 7 10 16 30 28 46 44 55 54 On Entrance 23 | . 6 9 11 17 1 36 48 41 70 Naked Turns 8 | . . . . 8 . . . . . Heaviest Build 74 | 10 50 51 55 74 16 21 21 14 22 Greatest Support 60 | 40 40 40 60 60 16 21 23 23 31 Greatest Overweight (x) 23 | . 1 1 1 23 . . . 3 5 Average Overweight (x) . | . . 1 . 1 . . . . . Largest Inventory Capacity 20 | 8 20 20 20 20 5 5 5 5 5 Average Capacity 14 | 6 13 20 20 19 5 5 5 5 5 Most Carried 20 | 4 13 13 16 20 5 4 5 5 5 Average Carried 11 | 2 8 12 13 17 3 2 3 4 3 Final Capacity 20 | 8 20 20 20 5 5 5 5 5 5 Final Carried 14 | 4 13 13 14 5 5 3 5 5 3 Class Distribution -------------------- 54% | Scavenger-Mutant 30% | Mutant 12% | Hacker-Sprinter Dominant Class ---------------- Mutant | -10/Materials Scavenger-Mutant | -10/Mines Scavenger-Mutant | -9/Materials Scavenger-Mutant | -8/Materials Mutant | -7/Factory Hacker-Sprinter | -6/Factory Hacker-Sprinter | -6/DSF Hacker-Sprinter | -5/Factory Mutant | -4/Factory Resources | -11 -10 -10 -9 -8 -7 -6 -6 -5 -4 ----------- Run | Yrd Mat Min Mat Mat Fac Fac DSF Fac Fac Matter Collected 1309 | 227 367 30 135 263 80 . . 177 30 Remotely . | . . . . . . . . . . Salvage Created 2805 | . 658 . 837 1125 139 . . 16 30 Parts 167 | . 45 . 58 53 4 . . 4 3 Haulers Intercepted 4 | . 2 . 1 1 . . . . . Recyclers Shooed 3 | . 2 . 1 . . . . . . Parts Field Recycled . | . . . . . . . . . . Retrieved Matter . | . . . . . . . . . . Parts Self-Destructed . | . . . . . . . . . . Prevented . | . . . . . . . . . . Kills | -11 -10 -10 -9 -8 -7 -6 -6 -5 -4 ------- Run | Yrd Mat Min Mat Mat Fac Fac DSF Fac Fac Combat Hostiles Destroyed 61 | . 15 . 18 25 3 . . . . Guns 61 | . 15 . 18 25 3 . . . . Classes Destroyed 13 | . 7 . 4 2 . . . . . Worker 4 | . 1 . 1 2 . . . . . Builder 3 | . 2 . 1 . . . . . . Hauler 4 | . 2 . 1 1 . . . . . Recycler 1 | . . . 1 . . . . . . Mechanic 1 | . . . . 1 . . . . . Operator 6 | . 1 . 1 1 1 . . 1 1 Watcher 2 | . . . 2 . . . . . . Swarmer 15 | . 6 . 3 6 . . . . . Grunt 30 | . 8 . 10 10 2 . . . . Duelist 1 | . . . 1 . . . . . . Sentry 10 | . . . 4 5 1 . . . . Specialist 4 | . . . . 4 . . . . . Subdweller 1 | . 1 . . . . . . . . Best Kill Streak 6 | . 6 . 4 6 4 . . . . Combat Bots Only 5 | . 5 . 4 5 3 . . . . Max Kills in Single Turn 2 | . 2 . 2 2 1 . . 1 1 Gunslinging 1 | . 1 . . 1 . . . . . Exploded . | . . . . . . . . . . Melee . | . . . . . . . . . . Uniques/NPCs Destroyed . | . . . . . . . . . . Combat | -11 -10 -10 -9 -8 -7 -6 -6 -5 -4 -------- Run | Yrd Mat Min Mat Mat Fac Fac DSF Fac Fac Hostile Shots Fired 693 | . 112 . 88 219 62 3 20 33 156 Missed 270 | . 38 . 28 65 38 2 7 23 69 Hits 423 | . 74 . 60 154 24 1 13 10 87 Melee 8 | . . . . . . . 8 . . Projectile 415 | . 74 . 60 154 24 1 5 10 87 AOE 2 | . . . . . . . 1 1 . Critical Strikes 16 | . 2 . 1 5 1 . 3 . 4 Actively Blocked 1 | . . . . . . . 1 . . Damage Taken 6922 | . 861 . 826 2452 218 19 336 184 2026 Core 2195 | . 184 . 62 514 89 . 105 77 1164 Absorbed by Shields 53 | . . . . . . . 53 . . Redirected to Shielding 102 | . . . . . . . 64 38 . Core Remaining (%) 68 | 100 . 26 84 6 87 . 87 92 . Volleys Fired 218 | . 79 . 65 62 12 . . . . Largest 2 | . 2 . 2 2 2 . . . . Hottest 160 | . 60 . 130 160 145 . . . . Shots Fired 403 | . 148 . 118 116 21 . . . . Gun 403 | . 148 . 118 116 21 . . . . Cannon . | . . . . . . . . . . Launcher . | . . . . . . . . . . Special . | . . . . . . . . . . Kinetic 118 | . 118 . . . . . . . . Thermal 285 | . 30 . 118 116 21 . . . . Explosive . | . . . . . . . . . . Electromagnetic . | . . . . . . . . . . Robot Hit Streak 16 | . 10 . 16 13 13 . . . . Robot Miss Streak 6 | . 6 . 5 4 4 . . . . Penetration Max . | . . . . . . . . . . Secondary Targets 6 | . 1 . . 5 . . . . . Max Gunslinging Chain 1 | . 1 . . 1 . . . . . Shots Hit Robots 294 | . 95 . 82 95 20 . . 1 1 Core Hits 182 | . 35 . 59 62 25 . . 1 . Critical Kills 1 | . 1 . . . . . . . . Critical Parts Destroyed . | . . . . . . . . . . Critical Strikes 3 | . 1 . . 2 . . . . . Burn 2 | . . . . 2 . . . . . Destroy 1 | . 1 . . . . . . . . Melee Attacks 28 | . . . . . 6 . 1 11 10 Impact 5 | . . . . . 5 . . . . Slashing . | . . . . . . . . . . Piercing 23 | . . . . . 1 . 1 11 10 Sneak Attacks 2 | . . . . . . . . 1 1 Combat Hostiles . | . . . . . . . . . . Follow-up Attacks . | . . . . . . . . . . Damage Inflicted 4806 | 6 1036 . 1243 2009 369 . . 71 72 Guns 4631 | . 1026 . 1243 1993 369 . . . . Cannons . | . . . . . . . . . . Explosions . | . . . . . . . . . . Melee 143 | . . . . . . . . 71 72 Ramming 32 | 6 10 . . 16 . . . . . Kinetic 762 | . 762 . . . . . . . . Thermal 3869 | . 264 . 1243 1993 369 . . . . Explosive . | . . . . . . . . . . Electromagnetic . | . . . . . . . . . . Impact . | . . . . . . . . . . Slashing . | . . . . . . . . . . Piercing 143 | . . . . . . . . 71 72 Highest Corruption 20 | . 4 4 . . . . . . 20 Average Corruption 5 | . 3 4 . . . . . . 17 Corruption Purged . | . . . . . . . . . . Corruption Blocked . | . . . . . . . . . . Effects 33 | . 18 6 . . . . . . 9 Message Errors 10 | . 6 3 . . . . . . 1 Matter Fused 4 | . 1 2 . . . . . . 1 Energy Discharges 4 | . 3 . . . . . . . 1 Parts Rejected 2 | . 1 . . . . . . . 1 Parts Fused 1 | . . 1 . . . . . . . Data Loss (minor) 4 | . 2 . . . . . . . 2 Data Loss (major) 3 | . 1 . . . . . . . 2 Alerts 1 | . 1 . . . . . . . . Misdirections 1 | . . . . . . . . . 1 Weapon Failures 3 | . 3 . . . . . . . . Overload Shots . | . . . . . . . . . . Overflow Damage 37 | . . . . . . . . . 37 Projectiles . | . . . . . . . . . . Explosions . | . . . . . . . . . . Melee 37 | . . . . . . . . . 37 Knockbacks . | . . . . . . . . . . Impact . | . . . . . . . . . . Kinetic . | . . . . . . . . . . Secondary . | . . . . . . . . . . Self-Inflicted Damage . | . . . . . . . . . . Shots . | . . . . . . . . . . Rammed 5 | 1 2 . . 2 . . . . . Targets Rammed 7 | 1 3 . . 3 . . . . . Kicked . | . . . . . . . . . . Crushed 2 | . 1 . . 1 . . . . . Highest Temperature 717 | . 157 . 225 717 362 . . . 35 Average Temperature 99 | . 47 . 71 171 149 . . . 3 Received Heat Transfer 1650 | . 405 . 360 702 99 . . 30 54 Effects 19 | . . . . 18 1 . . . . Shutdowns 2 | . . . . 2 . . . . . Energy Bleed 2 | . . . . 1 1 . . . . Interference 5 | . . . . 5 . . . . . Matter Decay 2 | . . . . 2 . . . . . Short Circuit 4 | . . . . 4 . . . . . Damage (minor) 2 | . . . . 2 . . . . . Damage (major) 2 | . . . . 2 . . . . . Siege Activations . | . . . . . . . . . . Martial Activations . | . . . . . . . . . . Shielding Activations . | . . . . . . . . . . Robots Disrupted . | . . . . . . . . . . Combat Hostiles . | . . . . . . . . . . Robots Corrupted . | . . . . . . . . . . Combat Hostiles . | . . . . . . . . . . Parts Fried . | . . . . . . . . . . Impact Corruptions . | . . . . . . . . . . Robots Melted . | . . . . . . . . . . Combat Hostiles . | . . . . . . . . . . Parts Melted 25 | . 2 . 4 17 2 . . . . Heat Transferred 8676 | . 600 . 2603 4818 655 . . . . Parts Sabotaged . | . . . . . . . . . . Parts Stolen . | . . . . . . . . . . Parts Stripped . | . . . . . . . . . . Power Chain Reactions . | . . . . . . . . . . Alert | -11 -10 -10 -9 -8 -7 -6 -6 -5 -4 ------- Run | Yrd Mat Min Mat Mat Fac Fac DSF Fac Fac Maximum Alert Level 2 | . . . . . . . . 1 2 Low Security (%) 92 | 100 100 100 100 100 100 100 100 50 34 Level 1 7 | . . . . . . . . 49 62 Level 2 . | . . . . . . . . . 2 Level 3 . | . . . . . . . . . . Level 4 . | . . . . . . . . . . Level 5 . | . . . . . . . . . . High Security . | . . . . . . . . . . Max Security . | . . . . . . . . . . Peak Influence 441 | . 116 23 160 157 103 15 5 285 441 Initial 135 | . . 23 . 39 39 3 5 . 135 Average 68 | . 31 2 79 56 38 7 1 151 251 Influence Increases 3167 | . 464 . 595 666 201 18 . 517 706 Destroy 0b10 Robot/C 1200 | . 280 . 360 500 60 . . . . Destroy 0b10 Robot/NC 95 | . 30 . 35 25 5 . . . . Destroy Leader 322 | . 74 . 106 122 20 . . . . Successful Hack 207 | . 35 . 15 4 37 3 . 68 45 Destroy Structure 38 | . . . 4 . 4 . . 14 16 Partial Spotted 150 | . . . . . 45 15 . 45 45 Lose Combat Pursuer 1155 | . 45 . 75 15 30 . . 390 600 Influence Decreases 2846 | . 404 60 500 672 282 18 8 240 662 Entered New Map 293 | . . 37 . 56 50 5 3 . 142 Time Decay 1971 | . 383 23 460 460 232 13 . 210 190 Search Patrol Dispatched 150 | . . . . . . . . . 150 Lost Part 346 | . 21 . 40 80 . . 5 20 180 Lost Ally 10 | . . . . . . . . 10 . Purge Threat 76 | . . . . 76 . . . . . Squads Dispatched 25 | . 3 . 1 6 5 . 1 6 3 Investigation 5 | . 1 . . . 2 . . 2 . Extermination 5 | . . . . . 2 . . 1 2 Reinforcement 12 | . 2 . 1 6 . . 1 1 1 Assault 2 | . . . . . . . . 2 . Garrison 1 | . . . . . 1 . . . . Intercept . | . . . . . . . . . . Searches Triggered 1 | . . . . . . . . . 1 Construction Impeded . | . . . . . . . . . . Haulers Reinforced . | . . . . . . . . . . Active Scanning Responses . | . . . . . . . . . . Cargo Convoy Interrupts . | . . . . . . . . . . Stealth | -11 -10 -10 -9 -8 -7 -6 -6 -5 -4 --------- Run | Yrd Mat Min Mat Mat Fac Fac DSF Fac Fac Distress Signals 6 | . 1 . 1 1 1 . . 1 1 Communications Jammed . | . . . . . . . . . . Distress Signals . | . . . . . . . . . . Times Spotted 200 | . 27 . 31 38 10 1 4 34 55 Peak Tracking Total 19 | . 5 . 4 5 3 1 4 7 19 Tactical Retreats 28 | . 2 . 3 1 2 . . 10 10 Traps | -11 -10 -10 -9 -8 -7 -6 -6 -5 -4 ------- Run | Yrd Mat Min Mat Mat Fac Fac DSF Fac Fac Traps Triggered 9 | . 3 . 2 . . . 1 2 1 Indirectly . | . . . . . . . . . . Trap Hack Attempts . | . . . . . . . . . . Triggered . | . . . . . . . . . . Disarmed . | . . . . . . . . . . Reprogrammed . | . . . . . . . . . . Reused . | . . . . . . . . . . Traps Extracted . | . . . . . . . . . . Installed . | . . . . . . . . . . Triggered . | . . . . . . . . . . Machines | -11 -10 -10 -9 -8 -7 -6 -6 -5 -4 ---------- Run | Yrd Mat Min Mat Mat Fac Fac DSF Fac Fac Machines Disabled . | . . . . . . . . . . Max in Single Turn . | . . . . . . . . . . Garrison Access 1 | . . . . . . . . 1 . Machines Repaired . | . . . . . . . . . . Machines Dismantled . | . . . . . . . . . . Machines Sabotaged . | . . . . . . . . . . Overloaded Fab Kills . | . . . . . . . . . . Hacking | -11 -10 -10 -9 -8 -7 -6 -6 -5 -4 --------- Run | Yrd Mat Min Mat Mat Fac Fac DSF Fac Fac Machines Accessed 40 | . 4 1 3 4 10 2 . 12 4 Terminals 35 | . 4 . 3 3 10 2 . 9 4 Fabricators . | . . . . . . . . . . Repair Stations 1 | . . . . . . . . 1 . Recycling Units 1 | . . . . . . . . 1 . Scanalyzers 2 | . . . . 1 . . . 1 . Garrison Access . | . . . . . . . . . . Total Hacks 129 | . 12 1 11 12 28 3 . 40 22 Successful 61 | . 8 1 6 8 15 1 . 11 11 Failed 67 | . 4 . 5 4 12 2 . 29 11 Catastrophic 11 | . . . . . 2 1 . 5 3 Database Lockouts 1 | . . . . . 1 . . . . Manual 86 | . 10 . 6 8 22 1 . 27 12 Terminals 116 | . 12 . 11 10 28 3 . 30 22 Fabricators . | . . . . . . . . . . Repair Stations 1 | . . . . . . . . 1 . Recycling Units 4 | . . . . . . . . 4 . Scanalyzers 7 | . . . . 2 . . . 5 . Garrison Access . | . . . . . . . . . . Terminal Hacks 35 | . 4 1 3 4 12 1 . 3 7 Record 5 | . . . . . 1 . . . 4 Part Schematic 3 | . . . . . 3 . . . . Robot Analysis 1 | . 1 . . . . . . . . Prototype ID Bank 3 | . 1 . 1 1 . . . . . Open Door 1 | . . 1 . . . . . . . Open DSF 2 | . . . . . 1 1 . . . Emergency Access Points 2 | . . . . 1 . . . . 1 Terminal Index 3 | . 1 . . . 1 . . . 1 Unreport Threat 1 | . . . . 1 . . . . . Locate Traps 4 | . . . . 1 2 . . 1 . Maintenance Status 1 | . . . . . . . . . 1 Investigation Status 1 | . . . . . 1 . . . . Reinforcement Status 2 | . . . 1 . . . . 1 . Recall Investigation 1 | . . . . . 1 . . . . Recall Extermination 1 | . . . . . . . . 1 . Registered Components 3 | . 1 . 1 . 1 . . . . Zone Layout 1 | . . . . . 1 . . . . Fabricator Hacks . | . . . . . . . . . . Repair Station Hacks . | . . . . . . . . . . Recycling Unit Hacks 2 | . . . . . . . . 2 . Recycle Component 1 | . . . . . . . . 1 . Report Inventory 1 | . . . . . . . . 1 . Scanalyzer 4 | . . . . 2 . . . 2 . Insert Component 2 | . . . . 1 . . . 1 . Analyze 2 | . . . . 1 . . . 1 . Garrison Access Hacks . | . . . . . . . . . . Unauthorized Hacks 20 | . 4 . 3 2 3 . . 4 4 Terminals 20 | . 4 . 3 2 3 . . 4 4 Assimilate 6 | . 1 . . . . . . 3 2 Botnet 14 | . 3 . 3 2 3 . . 1 2 Fabricators . | . . . . . . . . . . Repair Stations . | . . . . . . . . . . Recycling Units . | . . . . . . . . . . Scanalyzers . | . . . . . . . . . . Garrison Access . | . . . . . . . . . . Data Cores Recovered . | . . . . . . . . . . Used . | . . . . . . . . . . Hacking Detections 34 | . 2 . 3 4 7 2 . 12 4 Full Trace Events 3 | . . . . . 2 . . 1 . Feedback Events 1 | . . . . . . . . 1 . Hackware Fried 1 | . . . . . . . . 1 . Feedback Blocked . | . . . . . . . . . . Robot Schematics Acquired . | . . . . . . . . . . Robots Built . | . . . . . . . . . . Authchips . | . . . . . . . . . . Time . | . . . . . . . . . . Total Robot Build Rating . | . . . . . . . . . . Part Schematics Acquired 5 | . . . . 1 3 . . 1 . Parts Built . | . . . . . . . . . . Authchips . | . . . . . . . . . . Time . | . . . . . . . . . . Total Part Build Rating . | . . . . . . . . . . Parts Repaired . | . . . . . . . . . . Time . | . . . . . . . . . . Parts Recycled 1 | . . . . . . . . 1 . Recycled Matter . | . . . . . . . . . . Retrieved Matter . | . . . . . . . . . . Retrieved Components . | . . . . . . . . . . Parts Scanalyzed 2 | . . . . 1 . . . 1 . Part Schematics Acquired 2 | . . . . 1 . . . 1 . Parts Damaged . | . . . . . . . . . . Bothacking | -11 -10 -10 -9 -8 -7 -6 -6 -5 -4 ------------ Run | Yrd Mat Min Mat Mat Fac Fac DSF Fac Fac Used RIF Installer . | . . . . . . . . . . Robots Hacked . | . . . . . . . . . . Non-combat . | . . . . . . . . . . Combat . | . . . . . . . . . . Robot Hacks Applied . | . . . . . . . . . . Relay Couplers Released 1 | . . . . . . . . 1 . Machine Destruction 1 | . . . . . . . . 1 . Fabnet Peak Effective % . | . . . . . . . . . . Robots Rewired . | . . . . . . . . . . Allies Hacked . | . . . . . . . . . . Hacks Repelled . | . . . . . . . . . . Allies | -11 -10 -10 -9 -8 -7 -6 -6 -5 -4 -------- Run | Yrd Mat Min Mat Mat Fac Fac DSF Fac Fac Total Allies 3 | . . . . . . . . 2 1 Largest Group 1 | . . . . . . . . 1 1 Highest-Rated Group 26 | . . . . . . . . 26 26 Highest-Rated Ally 26 | . . . . . . . . 26 26 Total Orders . | . . . . . . . . . . Ally Attacks . | . . . . . . . . . . Total Damage . | . . . . . . . . . . Kills . | . . . . . . . . . . Allies Corrupted . | . . . . . . . . . . Allies Melted . | . . . . . . . . . . Intel | -11 -10 -10 -9 -8 -7 -6 -6 -5 -4 ------- Run | Yrd Mat Min Mat Mat Fac Fac DSF Fac Fac Active Infowar (turns) 5831 | . 1122 287 1342 1581 517 55 38 505 384 Optics 1499 | . . . . . 517 55 38 505 384 Sensors 2922 | . . . 1341 1581 . . . . . Terrain 1188 | . . . . . 363 55 38 505 227 Structural 1737 | . 1122 287 328 . . . . . . Cloaking 314 | . . . . . . . . 124 190 Robot Analysis Total 1 | . 1 . . . . . . . . Derelict Logs Recovered . | . . . . . . . . . . Drone Launches 5 | . . . . 5 . . . . . Drone Recoveries 5 | . . . . 5 . . . . . Exploration | -11 -10 -10 -9 -8 -7 -6 -6 -5 -4 ------------- Run | Yrd Mat Min Mat Mat Fac Fac DSF Fac Fac Turns Passed 6626 | 100 1518 287 1342 1852 545 55 38 505 384 Spaces Moved 5701 | 58 641 119 620 542 1299 180 88 1239 915 Core 250 | 7 . . . 22 . . . 1 220 Treads 1951 | 51 641 119 620 520 . . . . . Legs . | . . . . . . . . . . Wheels . | . . . . . . . . . . Hover . | . . . . . . . . . . Flight 3500 | . . . . . 1299 180 88 1238 695 Fastest Speed 26 | 50 160 240 160 50 32 28 28 29 26 Average Speed 90 | 146 194 240 160 249 33 28 28 29 36 Slowest Speed 1200 | 160 240 240 240 1200 34 28 29 200 300 Overloaded Moves . | . . . . . . . . . . Propulsion Burnouts . | . . . . . . . . . . Robots Hopped 10 | . . . . . 4 . . 1 5 Potential Cave-ins 2 | . . . . . 2 . . . . Cave-ins Triggered 1 | . . . . . . . . . 1 Exploration Rate (%) 37 | 5 65 20 47 46 37 6 90 34 27 Regions Visited 9 Branch Regions 1 Pre-discovered Areas . | . . . . . . . . . . Known Exits Taken 2 | . . . . . . 1 . 1 . Unknown Exits Taken 6 | 1 1 1 1 1 1 . . . . Scrap Searched 1 | . . 1 . . . . . . . Spaces Dug 22 | . . . . . 6 . . 7 9 Terrain Destroyed 22 | . . . . . 6 . . 7 9 Melee 22 | . . . . . 6 . . 7 9 Projectile . | . . . . . . . . . . AOE . | . . . . . . . . . . Terrain Rammed . | . . . . . . . . . . Walls Destroyed . | . . . . . . . . . . Machines Disabled . | . . . . . . . . . . Actions | -11 -10 -10 -9 -8 -7 -6 -6 -5 -4 --------- Run | Yrd Mat Min Mat Mat Fac Fac DSF Fac Fac Total 6686 | 69 771 122 854 912 1370 183 98 1360 947 Wait 518 | . 16 . 130 250 14 . . 100 8 Move 5674 | 58 640 118 619 541 1291 179 87 1236 905 Hop 9 | . . . . . 3 . . 1 5 Pick Up 60 | 3 15 1 11 16 10 . 1 1 2 Fast Attach 45 | 7 6 . 2 4 11 . 1 8 6 Attach 34 | . 2 2 7 6 9 3 . 1 4 Detach 19 | 1 1 1 3 5 4 . . 1 3 Swap 20 | . 2 . 6 6 . 1 2 1 2 Drop 51 | . 7 . 11 19 10 . 2 . 2 Fire 218 | . 79 . 65 62 12 . . . . Melee 28 | . . . . . 6 . 1 11 10 Ram . | . . . . . . . . . . Kick . | . . . . . . . . . . Crush 6 | . 3 . . 3 . . . . . Escape Stasis 4 | . . . . . . . 4 . . Rewire . | . . . . . . . . . . Trap . | . . . . . . . . . . Miscellaneous . | . . . . . . . . . . Route ------- -11/Scrapyard -10/Materials (discovered 5 exits: *Mat x3 / *Min / [Sub]) -10/Mines -9/Materials (discovered 5 exits: *Mat x2 / [*Min] / [*Sto x2]) -8/Materials -7/Factory (discovered 3 exits: *Fac x2 / [*Low]) -6/Factory -6/DSF -5/Factory (discovered 2 exits: *Fac x2) -4/Factory History --------- Turn | Location | Event 20 | -11/Scrapyard | Discovered new exit (range 16) 101 | -11/Scrapyard | Entered Materials 111 | -10/Materials | Discovered new exit (range 16) 312 | -10/Materials | Build established: Mutant 598 | -10/Materials | Discovered new exit (range 4) 757 | -10/Materials | Core integrity fell below 50% 817 | -10/Materials | Discovered new exit (range 5) 1128 | -10/Materials | Discovered new exit (range 13) 1128 | -10/Materials | Discovered new exit (range 13) 1301 | -10/Materials | Derelicts attacked the area 1619 | -10/Materials | Entered Mines 1636 | -10/Mines | Assembled infested the area 1735 | -10/Mines | Build established: Scavenger-Mutant 1833 | -10/Mines | Discovered new exit (range 5) 1853 | -10/Mines | Found the Drone Emporium 1874 | -10/Mines | Found Prototype Device 1906 | -10/Mines | Entered Materials 1906 | -9/Materials | Evolved 2 slots: Propulsion x1, Utility x1 1989 | -9/Materials | Discovered new exit (range 4) 2324 | -9/Materials | Discovered new exit (range 16) 2549 | -9/Materials | Discovered new exit (range 16) 2825 | -9/Materials | Discovered new exit (range 13) 2886 | -9/Materials | Discovered new exit (range 11) 3248 | -9/Materials | Entered another Materials area 3248 | -8/Materials | Evolved 2 slots: Utility x2 3250 | -8/Materials | Identified Sensor Drone Bay 5081 | -8/Materials | Core integrity fell below 50% 5085 | -8/Materials | Discovered new exit (range 16) 5095 | -8/Materials | Core integrity fell below 20% 5100 | -8/Materials | Entered Factory 5100 | -7/Factory | Evolved 2 slots: Power x1, Utility x1 5123 | -7/Factory | Lost 5 parts (1p1n2u1w) 5163 | -7/Factory | Garrison activated, responded to threat 5225 | -7/Factory | Discovered new exit (range 19) 5315 | -7/Factory | Discovered new exit (range 17) 5362 | -7/Factory | Build established: Mutant 5580 | -7/Factory | Central database locked down 5625 | -7/Factory | Discovered new exit (range 13) 5645 | -7/Factory | Entered another Factory area 5645 | -6/Factory | Evolved 2 slots: Propulsion x1, Utility x1 5700 | -6/Factory | Identified exit to DSF 5700 | -6/Factory | Entered DSF 5719 | -6/DSF | Additional patrols routed to DSF 5727 | -6/DSF | Discovered new exit (range 17) 5738 | -6/DSF | Entered Factory 5738 | -5/Factory | Evolved 2 slots: Utility x2 5763 | -5/Factory | Lost 3 parts (1p2u) 5842 | -5/Factory | Spotted B-75 Beast 5843 | -5/Factory | Build established: Hacker-Sprinter 5865 | -5/Factory | Discovered new exit (range 14) 6017 | -5/Factory | Hacking Suite fried by hacking feedback 6190 | -5/Factory | Discovered new exit (range 20) 6242 | -5/Factory | Identified exit to Factory 6243 | -5/Factory | Entered another Factory area 6243 | -4/Factory | Evolved 2 slots: Propulsion x1, Utility x1 6433 | -4/Factory | Crushed by falling debris 6433 | -4/Factory | System corruption reached 10% 6493 | -4/Factory | Search patrols dispatched 6517 | -4/Factory | Lost 16 parts (2p7n7u) 6600 | -4/Factory | Core integrity fell below 50% 6622 | -4/Factory | Core integrity fell below 20% 6627 | -4/Factory | Destroyed by exploding Fusion Modulator Last Messages --------------- 06501_ System corrupted: Component data lost. 06518_ Fusion Compressor destroyed. 06523_ L8TG/M2WKAPSUJNSFRHAVWA 06529_ ALERT: Potential suspicious activity detected, Programmers report to Factory Zone 9O. 06534_ Adv. Terrain Scanner destroyed. 06556_ System corrupted: Substantial component data lost. 06559_ K-01 Serf collects debris. 06571_ System corrupted: Substantial component data lost. 06580_ Acquired Neutrino Core. 06584_ Slug penetrates Wall. 06597_ System corrupted: Matter fused (-7). 06602_ Penetrated by Slug. 06627_ Triggered Hellfire Trap. 06627_ An explosion rips through the floor. 06627_ Fusion Modulator explodes. 06627_ K-01 Serf destroyed. 06627_ Fusion Modulator explodes. 06627_ K-01 Serf destroyed. 06627_ Fusion Modulator explodes. Map ----- +----------------------------------------------------+ | ??????????????????????????????????# + " | | ??????????????????????????????????# # " | | ??????????????????????????????????# # | | ??????????????????????????????????# ### | | ??????????????????????????????????# | | ??????????????????????????????????# | | ??????????????????????????????????# | | ??????????????????????????????????# | | ??????????????????????????????????# | | ??????????????????????????????????# ######### | | ??????????????????????????????????# #???????# | | ????????????????#################?# #???????# | | ????????????????# #?# #????"? # | | ????????????????# #?# +???????# | | ????????????????# #?# #???"???# | | ????????????????# #?# #? ???"?# | | ????????????????# #?# #???????## | | ????????????????# #?# #???????# | | ????????????????# ### #???????# | | ????????????????# + #?????"?# | | ????????????????# ### # ??""??# | | ????????????????# #?# #?????"?# | | ????????????????###### ;;#### #???"?"?+ | | ????????????????????# #???"???# | | ????????????????????# #??"????# | | ????????????????????# @ """ ""#? ?????# | | ????????????????????# w""" ""#???????## | | ????????????????????# """ G#????##?#? | | ????????????????????#; ""#??????#?? | | ????????????????????##/ """ ""#??#??#??? | | ???????????????????? """ #???#??##? | | ??????????????????? """ ##???????? | | ?????????????????? #????????? | | ????????????????? #????????? | | ???????????????? ;####### #?? ? ???? | | ??????????????? ###+####??????# #????? ??? | | ?????????????? ??????????????# #????? ? | | ?????????????? #???????????????# #??????? | | ????????????? ????????????????# #????????? | | ?????????????H ?????????????????# #??????? ? | | ????????????T ?????????????????# #????????? | | ????????????# ??????????????????# +????????? | | ????????????? ???????????????????# #????????# | | ??????????????????????????????????# #???#??#?# | | ???????????????????????????######## #????????# | | ???????????????????????????# ##???????# | | ???????????????????????????# #?????#??# | | ???????????????????????????# #????????# | | ???????????????????????????# ########## | | ?????????????????????????????? + | +----------------------------------------------------+ Best States ------------- Heat Dissipation 45 Energy Generation 28 Energy Capacity 350 Matter Stores 300 Matter Capacity 300 Sight Range 22 Robot Scan Range 14 Terrain Scan Range 20 Terrain Scan Density 210 Cloak Strength 2 Armor Coverage 150 Propulsion Shielding 66 Phase Shifting 5 Evasion (%) 72 Melee Accuracy 8 Recoil Reduction 3 Offensive Hacking 22 Defensive Hacking 30 Item Schematics ----------------- Imp. Flight Unit | -8/Materials | Scanalyzed Hacking Suite | -7/Factory | Hacked System Shield | -7/Factory | Hacked Hrd. Light Armor Plating | -7/Factory | Hacked Chainsword | -5/Factory | Scanalyzed Robot Schematics ------------------ None Fabricated ------------ Nothing Repaired ---------- Nothing Alien Tech Used ----------------- None Achievements -------------- None Challenges ------------ None Game ------ Seed ChargeAluminumBlaster Manual? 0 Play Time 01:26:47 Cumulative 40.9 hours Start 2025.08.06 @ 18:32:17 End 2025.08.06 @ 20:13:18 Sessions 1 Manual Loads 0 Difficulty Rogue Special Mode None Game No. 64 Rogue 64 Adventurer 0 Explorer 0 Win Type - Total 0 Types 0/0/0/0/0/0/0/0/0/0 Lore% 34 Gallery% 34 Achievement% 35 Wizard Run 0 Options --------- Layout 0 ASCII 0 Keyboard 1 Movement Vi Keybinds 0 Fullscreen 1 Font 24/Smallcaps Map View 76x50 Zoom Use 0% Tactical HUD 1 Map Filters NONE Filters NONE Steam 1 RUN: 5fd04c66-d58c-4ca8-9a51-3e7fafb1e758